bitfinex/quotes_BTCUSD_20220306
["timestamp","ask_amount","ask_price","bid_price","bid_amount"]
[1646609287280,0.01722824,38349.0,38344.0,0.01302]
[1646609287480,0.01722824,38349.0,38343.0,0.13039809]
[1646609287685,0.20409037,38347.0,38343.0,0.13039809]
[1646609288082,0.20409037,38347.0,38341.0,0.008]
[1646609288083,0.19921037,38345.0,38341.0,0.008]
[1646609288285,0.29028646,38345.0,38341.0,0.008]
[1646609289286,0.29028646,38345.0,38335.0,0.36287911]
[1646609289485,0.29042624,38345.0,38335.0,0.36287911]
[1646609290389,0.065225,38343.0,38335.0,0.34984911]
[1646609290587,0.00013978,38342.0,38335.0,0.34984911]
[1646609290784,0.00013978,38342.0,38339.0,0.03272331]
[1646609291028,0.00013978,38342.0,38341.0,0.03272331]
[1646609291628,0.01533072,38343.0,38341.0,0.03272331]
[1646609291831,0.0136674,38342.0,38337.0,0.065215]
[1646609292032,0.00013978,38343.0,38341.0,0.03272331]
[1646609292235,0.00013978,38343.0,38340.0,0.007]
[1646609292633,0.07597978,38343.0,38340.0,0.007]
[1646609292938,0.05654367,38342.0,38340.0,0.007]
[1646609293134,0.99730081,38341.0,38340.0,0.007]
[1646609293333,0.66016581,38341.0,38340.0,0.03972331]
[1646609293534,0.87584,38340.0,38328.0,0.17386364]
[1646609293841,0.02584,38338.0,38332.0,0.14]
[1646609294033,0.09576514,38336.0,38328.0,0.17386364]
[1646609294233,0.09590492,38336.0,38332.0,0.14]
[1646609294436,0.22584611,38335.0,38328.0,0.17386364]
[1646609294691,0.21412583,38329.0,38328.0,0.17386364]
[1646609294892,0.21412583,38329.0,38328.0,0.31386364]
[1646609295093,0.21412583,38329.0,38328.0,0.14]
[1646609295691,0.21412583,38329.0,38322.0,0.01303]
[1646609295891,0.21412583,38329.0,38326.0,0.1257]
[1646609296093,0.27359526,38323.0,38322.0,0.2125499]
[1646609296394,0.05,38323.0,38322.0,0.3382499]
[1646609296794,0.18064978,38324.0,38322.0,0.3382499]
[1646609297095,0.130512,38331.0,38328.0,0.33542003]
[1646609297294,0.130512,38331.0,38330.0,0.1257]
[1646609297494,0.156352,38331.0,38330.0,0.14]
[1646609297893,0.130512,38331.0,38328.0,0.33542003]
[1646609298097,0.130512,38331.0,38330.0,0.14]
[1646609299128,0.630512,38331.0,38330.0,0.14]
[1646609299330,0.130512,38331.0,38330.0,0.14]
[1646609299630,0.02084,38330.0,38324.0,0.04501093]
[1646609299830,0.02084,38330.0,38328.0,0.14]
[1646609300030,0.02084,38330.0,38322.0,0.02624675]
[1646609300232,0.24217059,38325.0,38322.0,0.01304]
[1646609300432,0.24217059,38325.0,38324.0,0.14]
[1646609300433,0.21502791,38325.0,38324.0,0.14]
[1646609300638,0.21502791,38325.0,38320.0,0.01303]
[1646609300639,0.21502791,38325.0,38318.0,0.3791747]
[1646609300834,0.21502791,38325.0,38322.0,0.14]
[1646609301033,0.21502791,38325.0,38324.0,0.14]
[1646609301233,0.21502791,38325.0,38316.0,0.31303]
[1646609301433,0.21502791,38325.0,38320.0,0.14]
[1646609301734,0.21502791,38325.0,38324.0,0.14]
[1646609301933,0.28028091,38325.0,38324.0,0.14]
[1646609303183,0.28028091,38325.0,38316.0,0.078279]
[1646609303383,0.065264,38323.0,38316.0,0.01303]
[1646609303581,0.16650191,38318.0,38311.0,0.37060065]
[1646609303780,0.23177491,38318.0,38311.0,0.37060065]
[1646609303981,0.23177491,38318.0,38311.0,0.67060065]
[1646609304181,0.23177491,38318.0,38310.0,0.37060065]
[1646609304583,0.24761491,38318.0,38310.0,0.84796503]
[1646609304785,0.065272,38316.0,38309.0,0.67160065]
[1646609304982,0.065272,38316.0,38309.0,0.37160065]
[1646609305183,0.065272,38316.0,38308.0,0.21504]
[1646609305184,0.065272,38316.0,38308.0,0.38564065]
[1646609305382,0.065272,38316.0,38308.0,0.01504]
[1646609305791,0.065272,38316.0,38307.0,0.001]
[1646609305792,0.85,38313.0,38307.0,0.001]
[1646609306048,0.02584,38310.0,38301.0,0.002]
[1646609306246,0.02584,38304.0,38303.0,0.001]
[1646609306443,0.17403271,38306.0,38300.0,0.65071931]
[1646609306444,0.17403271,38306.0,38300.0,0.26294331]
[1646609306643,0.02584,38304.0,38300.0,0.26294331]
[1646609307247,0.065295,38305.0,38300.0,0.26294331]
[1646609307844,0.091135,38305.0,38300.0,0.26294331]
[1646609308045,0.065295,38305.0,38300.0,0.26294331]
[1646609308244,0.065295,38305.0,38300.0,0.56294331]
[1646609309548,0.065265,38311.0,38305.0,0.04346631]
[1646609309788,0.065265,38311.0,38305.0,0.34904912]
[1646609309989,0.065265,38311.0,38306.0,0.51234281]
[1646609310389,0.065265,38311.0,38307.0,0.21234281]
[1646609310588,0.065265,38310.0,38308.0,0.3]
[1646609310789,0.065256,38316.0,38308.0,0.51234281]
[1646609311187,0.065256,38316.0,38309.0,0.21234281]
[1646609311788,0.065256,38316.0,38310.0,0.3]
[1646609312392,0.01787009,38314.0,38310.0,0.3]
[1646609312591,0.065256,38316.0,38310.0,0.3]
[1646609312592,0.01609486,38313.0,38310.0,0.3]
[1646609312789,0.08260053,38312.0,38310.0,0.3]
[1646609312991,0.01625676,38311.0,38307.0,0.21234281]
[1646609313193,0.01625676,38311.0,38304.0,0.21232367]
[1646609313194,0.01657812,38310.0,38304.0,0.21232367]
[1646609313452,0.19256294,38306.0,38300.0,0.26294331]
[1646609314151,0.01518572,38304.0,38300.0,0.26294331]
[1646609314749,0.17037732,38303.0,38300.0,0.13024331]
[1646609314955,0.17037732,38303.0,38299.0,0.29528398]
[1646609315150,0.19621732,38303.0,38299.0,0.29528398]
[1646609315360,0.19621732,38303.0,38292.0,0.002]
[1646609315361,0.85,38302.0,38294.0,0.001]
[1646609315551,0.02584,38302.0,38294.0,0.001]
[1646609315951,0.1800649,38295.0,38293.0,0.0205]
[1646609316155,0.1800649,38295.0,38292.0,0.002]
[1646609316156,0.01412331,38294.0,38292.0,0.002]
[1646609316953,0.10810807,38300.0,38293.0,0.35]
[1646609317183,0.85,38293.0,38291.0,0.002]
[1646609317390,0.01382551,38291.0,38288.0,0.001]
[1646609317588,0.86171796,38290.0,38285.0,0.001]
[1646609317784,0.32584,38289.0,38275.0,0.00012997]
[1646609317986,0.02584,38284.0,38273.0,0.5]
[1646609318186,0.33426679,38274.0,38273.0,0.48582997]
[1646609318396,0.16503461,38274.0,38273.0,0.09382797]
[1646609318691,0.16503461,38274.0,38270.0,0.001]
[1646609318692,0.52584,38273.0,38270.0,0.001]
[1646609318884,0.04104891,38273.0,38266.0,0.4094]
[1646609319086,0.3,38273.0,38266.0,0.4094]
[1646609319286,0.3,38273.0,38266.0,0.4084]
[1646609319287,0.32533,38273.0,38266.0,0.4084]
[1646609319483,0.1998,38272.0,38266.0,0.016236]
[1646609319690,0.01133418,38277.0,38265.0,0.33054105]
[1646609319886,0.0522,38280.0,38265.0,0.33054105]
[1646609320086,0.01148895,38278.0,38265.0,0.33054105]
[1646609320384,0.01095131,38277.0,38265.0,0.33054105]
[1646609320583,0.20734252,38272.0,38265.0,0.33054105]
[1646609320786,0.20734252,38272.0,38265.0,0.08054105]
[1646609320787,0.03921364,38271.0,38265.0,0.08054105]
[1646609321236,0.01337364,38271.0,38265.0,0.08054105]
[1646609321531,0.20058124,38272.0,38265.0,0.08054105]
[1646609321831,0.24319295,38268.0,38265.0,0.08054105]
[1646609322035,1.15,38267.0,38263.0,0.001]
[1646609322231,0.24319295,38268.0,38263.0,0.001]
[1646609322232,0.03805121,38266.0,38264.0,0.0002417]
[1646609322450,0.03805121,38266.0,38253.0,0.004]
[1646609322451,0.65,38263.0,38253.0,0.004]
[1646609322637,0.01330593,38261.0,38253.0,0.004]
[1646609322836,0.221991,38259.0,38255.0,0.001]
[1646609323035,0.221991,38259.0,38249.0,0.001]
[1646609323036,0.08750331,38257.0,38249.0,0.001]
[1646609323236,0.07406871,38250.0,38249.0,0.001]
[1646609323433,0.065384,38251.0,38249.0,0.001]
[1646609323636,0.130753,38253.0,38251.0,0.02523225]
[1646609323841,0.31151992,38262.0,38251.0,0.02523225]
[1646609324034,0.3,38264.0,38251.0,0.02523225]
[1646609324234,0.21184197,38265.0,38251.0,0.02523225]
[1646609324235,0.065357,38261.0,38251.0,0.02523225]
[1646609324685,0.12897745,38261.0,38251.0,0.02523225]
[1646609324887,0.065357,38260.0,38251.0,0.02523225]
[1646609325093,0.5,38267.0,38256.0,0.1867]
[1646609325288,0.3,38266.0,38251.0,0.05107225]
[1646609325493,0.215349,38266.0,38251.0,0.02523225]
[1646609325693,0.33683124,38265.0,38251.0,0.02523225]
[1646609325888,0.15775062,38259.0,38251.0,0.02523225]
[1646609326392,0.65,38252.0,38248.0,0.02523225]
[1646609326592,0.65,38252.0,38239.0,0.001]
[1646609326593,0.02584,38249.0,38239.0,0.001]
[1646609326789,0.01499076,38248.0,38239.0,0.001]
[1646609326987,0.02584,38247.0,38239.0,0.001]
[1646609327189,0.32584,38247.0,38236.0,0.09290909]
[1646609327391,0.02584,38241.0,38234.0,0.001]
[1646609327591,0.02584,38241.0,38231.0,0.001]
[1646609327592,0.04082882,38240.0,38231.0,0.001]
[1646609327791,0.04082882,38240.0,38218.0,0.1867]
[1646609327792,0.02084,38238.0,38218.0,0.1867]
[1646609327990,0.02084,38238.0,38217.0,0.09090909]
[1646609327991,0.15,38238.0,38217.0,0.09090909]
[1646609328190,0.15,38235.0,38217.0,0.09090909]
[1646609328439,0.17785058,38231.0,38217.0,0.09090909]
[1646609328633,0.130848,38229.0,38217.0,0.09090909]
[1646609328831,0.130848,38229.0,38228.0,0.00011613]
[1646609329433,0.130848,38229.0,38220.0,0.1867]
[1646609329634,0.065434,38230.0,38217.0,0.26397545]
[1646609329838,0.196264,38241.0,38236.0,0.46174058]
[1646609330033,0.0145649,38240.0,38236.0,0.46174058]
[1646609330434,0.01358931,38246.0,38236.0,0.46174058]
[1646609330636,0.06420444,38239.0,38236.0,0.46174058]
[1646609330833,0.01100388,38237.0,38236.0,0.06926058]
[1646609331034,0.01100388,38237.0,38222.0,0.4476]
[1646609331035,0.01562713,38237.0,38222.0,0.4476]
[1646609331235,0.01562713,38237.0,38215.0,0.0039]
[1646609331236,0.31198063,38237.0,38234.0,0.00019351]
[1646609331436,0.01223762,38234.0,38230.0,0.00011612]
[1646609331636,0.065417,38233.0,38230.0,0.00011612]
[1646609331941,0.065417,38233.0,38218.0,0.1308046]
[1646609332185,0.065417,38233.0,38222.0,0.1867]
[1646609332987,0.065417,38233.0,38225.0,0.065411]
[1646609333990,0.31184595,38232.0,38217.0,0.09090909]
[1646609334193,0.130874,38228.0,38217.0,0.09090909]
[1646609334388,0.130874,38228.0,38212.0,0.00220361]
[1646609334389,0.065454,38223.0,38212.0,0.00220361]
[1646609334588,0.20185499,38213.0,38205.0,0.09090909]
[1646609334787,0.01709685,38211.0,38205.0,0.09090909]
[1646609334988,0.01409408,38219.0,38211.0,0.01775178]
[1646609335187,0.75988,38221.0,38211.0,0.01775178]
[1646609335188,0.65988,38221.0,38211.0,0.01775178]
[1646609335386,0.19638,38221.0,38211.0,0.01775178]
[1646609335684,0.0157546,38217.0,38211.0,0.08318478]
[1646609335931,0.01396236,38216.0,38214.0,0.15731351]
[1646609336134,0.4635,38229.0,38215.0,0.3267]
[1646609336330,0.01258865,38231.0,38218.0,0.1867]
[1646609336934,0.1651427,38233.0,38220.0,0.1817]
[1646609337132,0.01426703,38236.0,38224.0,0.065407]
[1646609337333,0.065413,38233.0,38225.0,0.3]
[1646609337535,0.79905693,38238.0,38226.0,0.1817]
[1646609337731,0.79905693,38238.0,38227.0,0.3]
[1646609337933,0.16547151,38237.0,38221.0,0.00016938]
[1646609338237,0.18659683,38225.0,38221.0,0.00016938]
[1646609338433,0.25202283,38225.0,38221.0,0.00016938]
[1646609338631,0.25202283,38225.0,38215.0,0.3]
[1646609338834,0.130849,38225.0,38215.0,0.3]
[1646609339134,0.130849,38225.0,38215.0,0.4817]
[1646609339441,0.05,38225.0,38219.0,0.1817]
[1646609339689,0.05,38225.0,38220.0,0.31307]
[1646609339882,0.130832,38232.0,38230.0,0.1832999]
[1646609340083,0.02584,38235.0,38230.0,0.1832999]
[1646609340284,0.36906454,38233.0,38230.0,0.1689999]
[1646609340487,0.02584,38231.0,38217.0,0.065421]
[1646609340692,0.02584,38231.0,38211.0,0.01775178]
[1646609340693,0.02584,38225.0,38211.0,0.01775178]
[1646609340885,0.02584,38221.0,38211.0,0.01775178]
[1646609341083,0.02584,38221.0,38215.0,0.14]
[1646609341084,0.32584,38221.0,38215.0,0.14]
[1646609341283,0.08418281,38218.0,38211.0,0.01775178]
[1646609341490,0.08418281,38218.0,38206.0,0.01308]
[1646609341491,0.72584,38216.0,38206.0,0.01308]
[1646609341686,0.72584,38216.0,38205.0,0.09090909]
[1646609341687,0.02584,38214.0,38205.0,0.09090909]
[1646609341885,0.105736,38215.0,38206.0,0.3]
[1646609342090,0.5473,38222.0,38206.0,0.4817]
[1646609342485,0.5473,38222.0,38207.0,0.31307]
[1646609342885,0.5473,38222.0,38210.0,0.065432]
[1646609342886,0.07096468,38219.0,38210.0,0.065432]
[1646609343186,0.07096468,38219.0,38205.0,0.26994958]
[1646609343187,0.130894,38217.0,38209.0,0.01307]
[1646609343447,0.130894,38217.0,38206.0,0.01307]
[1646609344047,0.13641068,38219.0,38206.0,0.078506]
[1646609344247,0.13641068,38219.0,38208.0,0.1817]
[1646609344451,0.19423453,38221.0,38208.0,0.2076925]
[1646609344749,0.19423453,38221.0,38209.0,0.01307]
[1646609344948,0.02584,38220.0,38208.0,0.0001525]
[1646609345147,0.091276,38219.0,38208.0,0.0001525]
[1646609345651,0.091276,38219.0,38199.0,0.09090909]
[1646609345652,0.02584,38210.0,38199.0,0.09090909]
[1646609345852,0.01048245,38207.0,38187.0,0.0016649]
[1646609346055,0.0254,38196.0,38187.0,0.3016649]
[1646609346251,0.60184727,38207.0,38196.0,0.00471326]
[1646609346450,0.60184727,38207.0,38187.0,0.0016649]
[1646609346451,0.60184727,38207.0,38189.0,0.00171326]
[1646609346649,0.60184727,38207.0,38187.0,1.639e-05]
[1646609346650,1.237135,38206.0,38187.0,1.639e-05]
[1646609346951,0.17710174,38188.0,38187.0,1.639e-05]
[1646609347186,0.16048603,38201.0,38188.0,0.15364013]
[1646609347187,0.22105198,38189.0,38188.0,0.15364013]
[1646609347391,0.091345,38189.0,38183.0,0.01350008]
[1646609347585,0.03167009,38188.0,38183.0,0.01350008]
[1646609347787,0.065505,38189.0,38183.0,0.01350008]
[1646609347788,0.05,38189.0,38183.0,0.01350008]
[1646609348186,0.078561,38198.0,38183.0,0.00850008]
[1646609348388,0.38855348,38196.0,38183.0,0.00850008]
[1646609348589,0.365478,38195.0,38183.0,0.00850008]
[1646609348792,0.065495,38191.0,38183.0,0.00850008]
[1646609349087,0.03966622,38189.0,38183.0,0.00850008]
[1646609349291,0.02584,38187.0,38183.0,0.00850008]
[1646609349493,0.02584,38187.0,38172.0,0.01164816]
[1646609349494,0.17189926,38175.0,38174.0,0.08491507]
[1646609349690,0.59659926,38175.0,38174.0,0.08191507]
[1646609349895,0.38566,38175.0,38174.0,0.08091507]
[1646609350094,0.7,38174.0,38171.0,0.02]
[1646609350491,0.2202102,38173.0,38171.0,0.02]
[1646609350691,0.2202102,38173.0,38170.0,0.001]
[1646609350692,0.16700062,38173.0,38170.0,0.001]
[1646609350956,0.16700062,38173.0,38162.0,0.02500778]
[1646609350957,0.4,38171.0,38162.0,0.02500778]
[1646609351164,0.4,38171.0,38158.0,0.001]
[1646609351165,0.38477044,38167.0,38158.0,0.001]
[1646609351446,0.2814,38171.0,38160.0,0.015218]
[1646609351447,0.1112,38171.0,38160.0,0.015218]
[1646609351643,0.01187633,38164.0,38158.0,0.001]
[1646609351845,0.17637693,38169.0,38158.0,0.001]
[1646609351846,0.87584,38163.0,38158.0,0.001]
[1646609352046,0.29457331,38162.0,38155.0,0.09090909]
[1646609352246,0.01009762,38162.0,38155.0,0.09090909]
[1646609352449,0.01250339,38162.0,38155.0,0.09090909]
[1646609352645,0.35,38165.0,38155.0,9.09e-06]
[1646609352845,0.065549,38160.0,38155.0,9.09e-06]
[1646609353046,0.00020992,38156.0,38155.0,9.09e-06]
[1646609353244,0.01278862,38164.0,38157.0,0.2050206]
[1646609353443,0.01278862,38164.0,38158.0,0.3]
[1646609353644,0.55,38165.0,38158.0,0.3]
[1646609353645,0.5,38165.0,38158.0,0.3]
[1646609353847,0.38300007,38175.0,38158.0,0.3]
[1646609354043,0.38300007,38175.0,38166.0,0.16416693]
[1646609354044,0.38100007,38175.0,38166.0,0.16416693]
[1646609354243,0.01562054,38178.0,38167.0,0.3]
[1646609354244,0.01541561,38178.0,38167.0,0.3]
[1646609354446,0.499,38185.0,38167.0,0.3]
[1646609354690,0.5,38176.0,38167.0,0.3]
[1646609354902,0.5,38176.0,38173.0,0.34214973]
[1646609355095,0.5,38176.0,38174.0,0.4817]
[1646609355290,0.01195979,38187.0,38173.0,0.16044973]
[1646609355291,0.01195979,38187.0,38175.0,0.3]
[1646609355493,0.01195979,38187.0,38181.0,0.1817]
[1646609355690,0.02584,38192.0,38182.0,0.0481]
[1646609355892,0.01308,38197.0,38182.0,0.0481]
[1646609355893,0.01308,38197.0,38182.0,0.3481]
[1646609356089,0.01308,38199.0,38183.0,0.1817]
[1646609356291,0.01308,38199.0,38168.0,0.226]
[1646609356292,0.01308,38199.0,38188.0,0.19901806]
[1646609356494,0.01549868,38197.0,38189.0,0.3481]
[1646609356691,0.4811,38207.0,38189.0,0.3481]
[1646609356692,0.01686725,38196.0,38189.0,0.3481]
[1646609356892,0.20235511,38195.0,38189.0,0.0481]
[1646609357092,0.50694,38207.0,38203.0,0.05866082]
[1646609357093,0.02584,38205.0,38203.0,0.05866082]
[1646609357292,0.48586196,38206.0,38194.0,0.0481]
[1646609357293,0.20749234,38198.0,38194.0,0.0481]
[1646609357491,0.01719918,38197.0,38194.0,0.0481]
[1646609357699,0.19035412,38198.0,38190.0,0.00011728]
[1646609357700,0.387188,38194.0,38190.0,0.00011728]
[1646609357915,0.01196656,38193.0,38190.0,0.00011728]
[1646609358095,0.01685467,38191.0,38178.0,0.1549]
[1646609358294,0.461128,38190.0,38189.0,0.001]
[1646609358539,0.25612412,38195.0,38189.0,0.001]
[1646609358738,0.0481,38194.0,38189.0,0.001]
[1646609358940,0.01707206,38192.0,38189.0,0.001]
[1646609359136,0.18079999,38190.0,38189.0,0.001]
[1646609359339,0.06707206,38192.0,38189.0,0.001]
[1646609359340,0.0302475,38192.0,38189.0,0.001]
[1646609359542,0.01707206,38192.0,38178.0,0.387179]
[1646609359847,0.01315057,38189.0,38166.0,0.387179]
[1646609360041,0.15,38185.0,38167.0,0.3]
[1646609360248,0.01565861,38183.0,38172.0,0.004]
[1646609360441,0.28973783,38195.0,38190.0,0.21983115]
[1646609360442,0.47499,38192.0,38190.0,0.21983115]
[1646609360641,0.55529483,38191.0,38190.0,0.21983115]
[1646609360839,0.5434249,38191.0,38190.0,0.21983115]
[1646609361143,0.01308,38191.0,38190.0,0.21983115]
[1646609361349,0.01308,38199.0,38190.0,0.60697215]
[1646609361545,0.4654,38203.0,38191.0,0.687126]
[1646609361546,0.01308,38202.0,38191.0,0.687126]
[1646609361742,0.51308,38207.0,38191.0,0.687126]
[1646609361942,0.22167666,38205.0,38191.0,0.87845923]
[1646609362203,0.1748226,38209.0,38197.0,0.387054]
[1646609362403,0.4654,38213.0,38198.0,0.387039]
[1646609362404,0.3,38212.0,38198.0,0.387039]
[1646609362710,0.109077,38231.0,38209.0,0.05750161]
[1646609362711,0.24270783,38222.0,38209.0,0.05750161]
[1646609362910,0.24270783,38222.0,38199.0,0.37652142]
[1646609362911,0.2374,38222.0,38210.0,0.686895]
[1646609363106,0.16922354,38220.0,38210.0,0.686895]
[1646609363308,0.2374,38222.0,38210.0,0.686895]
[1646609363503,0.00165,38211.0,38210.0,0.686895]
[1646609363705,0.00165,38211.0,38210.0,0.386895]
[1646609363910,0.00165,38211.0,38203.0,0.0481]
[1646609364104,0.00165,38211.0,38200.0,0.0481]
[1646609364308,0.00165,38211.0,38206.0,0.005]
[1646609364507,0.3,38218.0,38212.0,9.862e-05]
[1646609364706,0.20665243,38220.0,38213.0,0.386865]
[1646609364909,0.45149994,38222.0,38214.0,0.386852]
[1646609365106,0.45149994,38222.0,38212.0,9.862e-05]
[1646609365310,0.2374,38222.0,38213.0,0.38686]
[1646609365510,0.2374,38222.0,38218.0,0.05400825]
[1646609365710,0.2374,38222.0,38219.0,0.863495]
[1646609365935,0.2374,38222.0,38221.0,0.386772]
[1646609366338,0.2374,38222.0,38221.0,0.703472]
[1646609366737,0.2374,38222.0,38221.0,0.386772]
[1646609366934,0.3,38229.0,38212.0,0.1609]
[1646609366935,0.4654,38230.0,38218.0,0.386803]
[1646609367134,0.4654,38230.0,38217.0,9.861e-05]
[1646609367135,0.16031504,38229.0,38217.0,9.861e-05]
[1646609367334,0.16031504,38229.0,38218.0,0.3868]
[1646609367536,0.01307,38235.0,38219.0,0.3]
[1646609367734,0.6345,38240.0,38221.0,0.1767]
[1646609367735,0.02584,38239.0,38221.0,0.1767]
[1646609367933,0.20145,38242.0,38222.0,0.3]
[1646609367934,0.02584,38241.0,38222.0,0.3]
[1646609368139,0.03891,38241.0,38222.0,0.3]
[1646609368335,0.03891,38241.0,38221.0,0.1767]
[1646609368533,0.22017816,38235.0,38225.0,0.386716]
[1646609368935,0.22017816,38235.0,38219.0,0.17678258]
[1646609369135,0.1998,38240.0,38220.0,0.3]
[1646609369333,0.1998,38240.0,38227.0,8.256e-05]
[1646609369533,0.05,38239.0,38227.0,8.256e-05]
[1646609369785,0.687179,38238.0,38227.0,8.256e-05]
[1646609369984,0.31307,38237.0,38217.0,0.02584]
[1646609370185,0.1602067,38233.0,38219.0,0.21150071]
[1646609370383,0.1602067,38233.0,38226.0,0.005]
[1646609370583,0.2102067,38233.0,38226.0,0.005]
[1646609370788,0.85,38232.0,38216.0,0.2452932]
[1646609370987,0.86443625,38232.0,38217.0,0.386801]
[1646609371184,0.0160748,38231.0,38218.0,0.02584]
[1646609371386,0.17706235,38227.0,38219.0,0.386788]
[1646609371585,0.01675665,38228.0,38220.0,9.86e-05]
[1646609371788,0.387179,38226.0,38220.0,9.86e-05]
[1646609371985,0.46307,38231.0,38220.0,9.86e-05]
[1646609371986,0.0282892,38224.0,38220.0,9.86e-05]
[1646609372185,0.01472982,38223.0,38221.0,0.386769]
[1646609372383,0.01649823,38222.0,38221.0,0.386771]
[1646609372582,0.17955911,38225.0,38221.0,0.386771]
[1646609372787,0.05,38226.0,38218.0,0.38689861]
[1646609372986,0.01374218,38219.0,38218.0,0.38689861]
[1646609373184,0.16346295,38229.0,38218.0,0.38689861]
[1646609373436,0.16346295,38229.0,38218.0,9.861e-05]
[1646609373437,0.21346295,38229.0,38218.0,9.861e-05]
[1646609373734,0.17226951,38225.0,38215.0,0.386831]
[1646609373935,0.17226951,38225.0,38220.0,9.86e-05]
[1646609374135,0.22226951,38225.0,38220.0,9.86e-05]
[1646609374335,0.3,38224.0,38220.0,9.86e-05]
[1646609374639,0.40016883,38222.0,38220.0,9.86e-05]
[1646609374837,0.49215475,38221.0,38220.0,9.86e-05]
[1646609375040,0.19215475,38221.0,38214.0,0.005]
[1646609375240,0.05,38222.0,38215.0,0.386835]
[1646609375241,0.16331337,38220.0,38215.0,0.386835]
[1646609375437,0.16331337,38220.0,38214.0,0.005]
[1646609375636,0.16331337,38220.0,38215.0,0.386841]
[1646609375637,0.21331337,38220.0,38215.0,0.386841]
[1646609376141,0.05,38220.0,38216.0,0.38683]
[1646609376339,0.05,38220.0,38217.0,0.386819]
[1646609376642,0.05,38220.0,38212.0,0.005]
[1646609376643,0.51127,38228.0,38218.0,0.3]
[1646609376839,0.4982,38228.0,38219.0,0.38679]
[1646609377039,0.1998,38229.0,38221.0,0.386767]
[1646609377289,0.1998,38229.0,38222.0,0.3]
[1646609377491,0.16434487,38227.0,38223.0,0.386745]
[1646609377889,0.16434487,38227.0,38221.0,0.00129674]
[1646609378289,0.19788517,38230.0,38221.0,0.00129674]
[1646609378492,0.001,38231.0,38222.0,0.41342979]
[1646609378696,0.001,38231.0,38224.0,0.386733]
[1646609378890,0.001,38231.0,38223.0,0.386741]
[1646609379089,0.001,38231.0,38224.0,0.386733]
[1646609379495,0.001,38231.0,38227.0,0.386698]
[1646609379696,0.01147235,38244.0,38228.0,0.3]
[1646609379697,0.01307,38243.0,38228.0,0.3]
[1646609379894,0.01307,38245.0,38232.0,0.07282105]
[1646609380093,0.4677,38246.0,38233.0,0.38662]
[1646609380293,0.4677,38246.0,38228.0,0.386671]
[1646609380494,0.4677,38246.0,38230.0,0.386654]
[1646609380695,0.20266873,38245.0,38232.0,0.20660672]
[1646609380960,0.4677,38246.0,38232.0,0.20660672]
[1646609380961,0.4677,38246.0,38233.0,0.68662]
[1646609381357,0.00011429,38253.0,38235.0,0.1767]
[1646609381555,0.00011429,38253.0,38243.0,0.21833591]
[1646609381751,0.00011429,38253.0,38244.0,0.686491]
[1646609382154,0.01307,38262.0,38248.0,0.1767]
[1646609382358,0.9419,38270.0,38254.0,0.1767]
[1646609382359,0.01245796,38269.0,38254.0,0.1767]
[1646609382554,0.22004602,38267.0,38255.0,0.686359]
[1646609382952,0.22004602,38267.0,38250.0,0.3]
[1646609383155,0.19222725,38262.0,38250.0,0.3]
[1646609383452,0.01715054,38258.0,38251.0,0.386402]
[1646609383652,0.19222725,38262.0,38253.0,0.386388]
[1646609383653,0.01396813,38257.0,38253.0,0.386388]
[1646609383858,0.01396813,38257.0,38249.0,0.3]
[1646609383859,0.00012044,38260.0,38256.0,0.386355]
[1646609384055,0.00012044,38260.0,38255.0,8.866e-05]
[1646609384257,0.387179,38259.0,38255.0,8.866e-05]
[1646609384457,0.387179,38257.0,38255.0,8.866e-05]
[1646609384691,0.387179,38257.0,38247.0,0.005]
[1646609384692,0.21081455,38254.0,38247.0,0.005]
[1646609384886,0.15636038,38257.0,38247.0,0.005]
[1646609385084,0.01145274,38258.0,38254.0,8.866e-05]
[1646609385283,0.00012044,38259.0,38254.0,8.866e-05]
[1646609385688,0.00012044,38259.0,38255.0,0.386365]
[1646609385885,0.2225933,38264.0,38254.0,0.30008866]
[1646609386086,0.2225933,38264.0,38249.0,0.18564675]
[1646609386285,0.00011938,38258.0,38250.0,0.386416]
[1646609386487,0.00011938,38258.0,38255.0,0.386365]
[1646609387084,0.2225933,38264.0,38254.0,0.006]
[1646609387284,0.00011463,38258.0,38254.0,0.006]
[1646609387488,0.00011463,38258.0,38255.0,0.386359]
[1646609388286,0.18912254,38260.0,38255.0,0.381359]
[1646609388531,0.00011563,38258.0,38255.0,0.381359]
[1646609389333,0.01199726,38265.0,38255.0,0.381359]
[1646609389540,0.01199726,38265.0,38250.0,0.1767]
[1646609389541,0.33783726,38265.0,38250.0,0.1767]
[1646609389734,0.00011563,38258.0,38253.0,8.326e-05]
[1646609389933,0.00011563,38258.0,38254.0,0.381394]
[1646609390134,0.03725087,38258.0,38254.0,0.381394]
[1646609390335,0.03725087,38258.0,38255.0,0.3]
[1646609390534,0.01306,38276.0,38266.0,0.381261]
[1646609390735,0.00065898,38269.0,38266.0,0.381261]
[1646609390938,0.16250052,38270.0,38265.0,0.46741737]
[1646609391134,0.01559197,38269.0,38265.0,0.46741737]
[1646609391335,0.01559197,38269.0,38240.0,0.1]
[1646609391336,2.19848963,38263.0,38240.0,0.1]
[1646609391537,2.19848963,38263.0,38237.0,0.026]
[1646609391538,0.18741411,38261.0,38237.0,0.026]
[1646609391740,0.02584,38254.0,38237.0,0.026]
[1646609391937,0.02584,38254.0,38239.0,0.38157]
[1646609391938,0.0125129,38252.0,38239.0,0.38157]
[1646609392192,0.3625129,38252.0,38239.0,0.38157]
[1646609392385,0.3625129,38252.0,38239.0,0.44600647]
[1646609392386,0.18040648,38246.0,38239.0,0.44600647]
[1646609392783,0.05,38246.0,38239.0,0.44600647]
[1646609393183,0.01022433,38248.0,38239.0,0.44600647]
[1646609393184,0.01022433,38248.0,38246.0,0.15]
[1646609393387,0.0481,38256.0,38247.0,0.381486]
[1646609393585,0.3,38257.0,38247.0,0.55379592]
[1646609393784,0.51969851,38257.0,38247.0,0.55379592]
[1646609393983,0.01521691,38255.0,38247.0,0.381486]
[1646609394585,0.01521691,38255.0,38248.0,8.009e-05]
[1646609394987,0.01021691,38255.0,38248.0,8.009e-05]